Cogmind - Beta 11 @@@ ROGUE MODE // 2022.04.02 @ 00:15:08 Player: brainfire Result: Destroyed by D-53 Grenadier with Mini Grenade Launcher Performance ------------- Evolutions (1) 500 Regions Visited (4) 800 Robots Destroyed (22) 110 Value Destroyed (645) 645 Prototype IDs (0) 0 Alien Tech Used (0) 0 Bonus (25) 25 TOTAL SCORE: 2080 Bonus ------- Follower Combat Kills 25 Cogmind --------- Core Integrity 0/400 Matter 287/300 Energy 100/100 System Corruption 0% Temperature Cool (0) Movement Rolling (115) Ox1 Location -9/Mines Parts ------- > --- POWER (1) -------- (None) > --- PROPULSION (4) --- Compact Wheel > --- UTILITY (2) ------ Large Storage Unit > --- WEAPON (2) ------- (None) > --- INVENTORY (15) --- Small Matter Pod (50) Beam Rifle Heavy Assault Rifle Rocket Launcher Datajack Mining Laser Welding Torch Peak State ------------ > --- POWER ------------ Light Nuclear Core > --- PROPULSION ------- Light Treads Light Treads Aluminum Leg Aluminum Leg > --- UTILITY ---------- Large Storage Unit Light Armor Plating > --- WEAPON ----------- Beam Rifle Particle Gun > --- INVENTORY -------- Ion Engine Light Treads Compact Wheel Small Matter Pod Sensor Array Sensor Array Beam Rifle Beam Rifle Rocket Launcher Mining Laser Welding Torch [Rating: 14] Favorites ----------- Power Light Nuclear Core Engine Ion Engine Power Core Light Nuclear Core Propulsion Light Treads Treads Light Treads Leg Aluminum Leg Wheel Compact Wheel Utility Large Storage Unit Device Sensor Array Storage Large Storage Unit Protection Light Armor Plating Weapon Medium Laser Energy Gun Medium Laser Ballistic Gun Heavy Assault Rifle Build | -11 -10 -10 -9 -9 ------- Run | Scr Mat Min Mat Min Slots Evolved 2 | . . . 2 . Power . | . . . . . Propulsion 2 | . . . 2 . Utility . | . . . . . Weapon . | . . . . . Parts Attached 38 | 7 14 . 9 8 Power 6 | 1 2 . 1 2 Engine 5 | 1 1 . 1 2 Core 1 | . 1 . . . Reactor . | . . . . . Propulsion 12 | 3 3 . 4 2 Treads 7 | 2 . . 4 1 Leg 3 | 1 2 . . . Wheel 2 | . 1 . . 1 Hover . | . . . . . Flight . | . . . . . Utility 10 | 1 6 . 2 1 Device 4 | . 2 . 1 1 Storage 2 | 1 1 . . . Processor . | . . . . . Hackware . | . . . . . Protection 4 | . 3 . 1 . Artifact . | . . . . . Weapon 10 | 2 3 . 2 3 Energy Gun 8 | 1 3 . 1 3 Energy Cannon . | . . . . . Ballistic Gun 2 | 1 . . 1 . Ballistic Cannon . | . . . . . Launcher . | . . . . . Special Weapon . | . . . . . Impact Weapon . | . . . . . Slashing Weapon . | . . . . . Piercing Weapon . | . . . . . Special Melee Weapon . | . . . . . Unidentified Prototypes . | . . . . . Parts Lost 20 | . 3 . 2 15 Power 5 | . 1 . 1 3 Propulsion 6 | . 1 . . 5 Utility 2 | . . . . 2 Weapon 7 | . 1 . 1 5 Highest Loss Streak 15 | . 2 . 1 15 To Critical Strikes . | . . . . . Average Slot Usage (%) 98 | . 98 100 99 90 Engine 6 | . 6 . 7 11 Core 6 | . 7 14 3 . Treads 16 | . 12 . 29 36 Leg 16 | . 15 28 14 . Device 11 | . 11 14 9 9 Storage 12 | . 12 14 11 11 Protection 2 | . 4 . 1 . Energy Gun 20 | . 21 28 14 11 Ballistic Gun 5 | . 5 . 7 8 Naked Turns . | . . . . . Heaviest Build 34 | 13 31 31 34 32 Greatest Support 80 | 40 40 20 80 80 Greatest Overweight (x) 2 | 2 2 1 1 1 Average Overweight (x) . | . . 1 . . Largest Inventory Capacity 15 | 8 15 15 15 15 Average Capacity 14 | 6 13 15 15 15 Most Carried 15 | 5 15 15 15 15 Average Carried 12 | 3 11 14 13 13 Final Capacity 15 | 8 15 15 15 15 Final Carried 15 | 4 15 13 15 7 Class Distribution -------------------- 71% | Scavenger-Mutant 28% | Mutant Dominant Class ---------------- Scavenger-Mutant | -10/Materials Scavenger-Mutant | -10/Mines Scavenger-Mutant | -9/Materials Scavenger-Mutant | -9/Mines Resources | -11 -10 -10 -9 -9 ----------- Run | Scr Mat Min Mat Min Matter Collected 559 | 180 264 . 87 28 Remotely . | . . . . . Salvage Created 769 | . 377 143 211 38 Parts 48 | . 24 6 18 . Haulers Intercepted . | . . . . . Recyclers Shooed . | . . . . . Parts Field Recycled . | . . . . . Retrieved Matter . | . . . . . Parts Self-Destructed . | . . . . . Prevented . | . . . . . Kills | -11 -10 -10 -9 -9 ------- Run | Scr Mat Min Mat Min Combat Hostiles Destroyed 20 | . 7 3 7 3 Melee 2 | . . . . 2 Guns 17 | . 7 2 7 1 Classes Destroyed 6 | . 3 . 2 1 Builder 1 | . 1 . . . Watcher 4 | . 3 . 1 . Swarmer 4 | . . . 4 . Grunt 11 | . 7 3 1 . Sentry 2 | . . . 2 . Assembled 3 | . . . . 3 Best Kill Streak 4 | . 4 2 4 2 Combat Bots Only 4 | . 4 2 4 2 Max Kills in Single Turn 2 | . 2 1 1 1 Gunslinging . | . . . . . Exploded . | . . . . . Melee 1 | . . . . 1 Uniques/NPCs Destroyed . | . . . . . Combat | -11 -10 -10 -9 -9 -------- Run | Scr Mat Min Mat Min Damage Taken 2987 | . 930 201 481 1375 Core 632 | . 185 45 65 337 Absorbed by Shields . | . . . . . Core Remaining (%) 54 | 100 . 8 . . Volleys Fired 71 | . 35 9 21 6 Largest 2 | . 2 2 2 2 Hottest 121 | . 115 115 121 79 Shots Fired 141 | . 70 19 40 12 Gun 141 | . 70 19 40 12 Cannon . | . . . . . Launcher . | . . . . . Special . | . . . . . Kinetic 41 | . 24 . 11 6 Thermal 100 | . 46 19 29 6 Explosive . | . . . . . Electromagnetic . | . . . . . Robot Hit Streak 15 | . 12 8 15 3 Robot Miss Streak 3 | . 3 1 2 3 Penetration Max . | . . . . . Secondary Targets 2 | . 1 . 1 . Max Gunslinging Chain 1 | . 1 . 1 . Shots Hit Robots 100 | . 51 15 26 8 Core Hits 49 | . 24 6 12 7 Critical Kills . | . . . . . Critical Parts Destroyed . | . . . . . Critical Strikes 5 | . 3 1 1 . Burn 5 | . 3 1 1 . Melee Attacks . | . . . . . Impact . | . . . . . Slashing . | . . . . . Piercing . | . . . . . Sneak Attacks . | . . . . . Combat Hostiles . | . . . . . Follow-up Attacks . | . . . . . Damage Inflicted 1390 | . 647 203 410 130 Guns 1277 | . 562 203 393 119 Cannons . | . . . . . Explosions 64 | . 64 . . . Melee . | . . . . . Ramming 49 | . 21 . 17 11 Kinetic 323 | . 144 . 103 76 Thermal 954 | . 418 203 290 43 Explosive . | . . . . . Electromagnetic 64 | . 64 . . . Impact . | . . . . . Slashing . | . . . . . Piercing . | . . . . . Highest Corruption 1 | . 1 1 . . Average Corruption 1 | . 1 1 . . Corruption Purged . | . . . . . Corruption Blocked . | . . . . . Effects 3 | . . 3 . . Message Errors 1 | . . 1 . . Heat Flow Errors 1 | . . 1 . . Misfires 1 | . . 1 . . Overload Shots . | . . . . . Overflow Damage . | . . . . . Projectiles . | . . . . . Explosions . | . . . . . Melee . | . . . . . Knockbacks . | . . . . . Impact . | . . . . . Kinetic . | . . . . . Secondary . | . . . . . Self-Inflicted Damage 92 | . 92 . . . Shots 3 | . 3 . . . Rammed 16 | . 8 . 3 5 Targets Rammed 19 | . 8 . 5 6 Kicked 1 | . . . 1 . Crushed 2 | . . . 1 1 Highest Temperature 333 | . 318 333 319 96 Average Temperature 123 | . 139 123 115 34 Received Heat Transfer 1160 | . 528 111 141 380 Effects 1 | . . 1 . . Shutdowns 1 | . . 1 . . Siege Activations . | . . . . . Robots Corrupted . | . . . . . Combat Hostiles . | . . . . . Parts Fried . | . . . . . Impact Corruptions . | . . . . . Robots Melted 1 | . . 1 . . Combat Hostiles 1 | . . 1 . . Parts Melted 3 | . 2 . 1 . Heat Transferred 2997 | . 1443 629 814 111 Parts Sabotaged . | . . . . . Parts Stolen . | . . . . . Parts Stripped . | . . . . . Power Chain Reactions 2 | . 2 . . . Missiles Intercepted . | . . . . . Alert | -11 -10 -10 -9 -9 ------- Run | Scr Mat Min Mat Min Peak Influence 185 | . 165 57 185 15 Initial 20 | . . 7 20 . Average 42 | . 46 49 56 . Maximum Alert Level . | . . . . . Low Security (%) 100 | 100 100 100 100 100 Level 1 . | . . . . . Level 2 . | . . . . . Level 3 . | . . . . . Level 4 . | . . . . . Level 5 . | . . . . . High Security . | . . . . . Max Security . | . . . . . Squads Dispatched 1 | . . . 1 . Investigation 1 | . . . 1 . Extermination . | . . . . . Reinforcement . | . . . . . Assault . | . . . . . Garrison . | . . . . . Intercept . | . . . . . Searches Triggered . | . . . . . Construction Impeded . | . . . . . Haulers Reinforced . | . . . . . Active Scanning Responses . | . . . . . Cargo Convoy Interrupts . | . . . . . Stealth | -11 -10 -10 -9 -9 --------- Run | Scr Mat Min Mat Min Distress Signals 1 | . 1 . . . Communications Jammed . | . . . . . Distress Signals . | . . . . . Times Spotted 49 | . 19 4 15 11 Peak Tracking Total 12 | . 7 2 4 12 Tactical Retreats 4 | . 3 . . 1 Traps | -11 -10 -10 -9 -9 ------- Run | Scr Mat Min Mat Min Traps Triggered 2 | . 1 . 1 . Indirectly . | . . . . . Trap Hack Attempts . | . . . . . Triggered . | . . . . . Disarmed . | . . . . . Reprogrammed . | . . . . . Reused . | . . . . . Traps Extracted . | . . . . . Installed . | . . . . . Triggered . | . . . . . Machines | -11 -10 -10 -9 -9 ---------- Run | Scr Mat Min Mat Min Machines Disabled 2 | . 2 . . . Max in Single Turn 2 | . 2 . . . Machines Sabotaged . | . . . . . Garrisons Compromised . | . . . . . Overloaded Fab Kills . | . . . . . Hacking | -11 -10 -10 -9 -9 --------- Run | Scr Mat Min Mat Min Machines Accessed 7 | . 6 . 1 . Terminals 5 | . 4 . 1 . Fabricators . | . . . . . Repair Stations . | . . . . . Recycling Units 2 | . 2 . . . Scanalyzers . | . . . . . Garrison Access . | . . . . . Total Hacks 20 | . 15 . 5 . Successful 13 | . 11 . 2 . Failed 7 | . 4 . 3 . Catastrophic . | . . . . . Database Lockouts . | . . . . . Manual 6 | . 6 . . . Terminals 16 | . 11 . 5 . Fabricators . | . . . . . Repair Stations . | . . . . . Recycling Units 4 | . 4 . . . Scanalyzers . | . . . . . Garrison Access . | . . . . . Terminal Hacks 9 | . 7 . 2 . Record 1 | . . . 1 . Emergency Access Points 1 | . 1 . . . Unreport Threat 1 | . . . 1 . Locate Traps 1 | . 1 . . . Maintenance Status 1 | . 1 . . . Security Status 1 | . 1 . . . Registered Components 1 | . 1 . . . Registered Prototypes 1 | . 1 . . . Zone Layout 1 | . 1 . . . Fabricator Hacks . | . . . . . Repair Station Hacks . | . . . . . Recycling Unit Hacks 4 | . 4 . . . Process 1 | . 1 . . . Report Inventory 3 | . 3 . . . Scanalyzer . | . . . . . Garrison Access Hacks . | . . . . . Unauthorized Hacks . | . . . . . Terminals . | . . . . . Fabricators . | . . . . . Repair Stations . | . . . . . Recycling Units . | . . . . . Scanalyzers . | . . . . . Garrison Access . | . . . . . Data Cores Recovered . | . . . . . Used . | . . . . . Hacking Detections 6 | . 5 . 1 . Full Trace Events . | . . . . . Feedback Events . | . . . . . Feedback Blocked . | . . . . . Robot Schematics Acquired . | . . . . . Robots Built . | . . . . . Authchips . | . . . . . Time . | . . . . . Total Robot Build Rating . | . . . . . Part Schematics Acquired . | . . . . . Parts Built . | . . . . . Authchips . | . . . . . Time . | . . . . . Total Part Build Rating . | . . . . . Parts Repaired . | . . . . . Time . | . . . . . Parts Recycled . | . . . . . Recycled Matter 156 | . 156 . . . Retrieved Matter . | . . . . . Retrieved Components . | . . . . . Parts Scanalyzed . | . . . . . Part Schematics Acquired . | . . . . . Parts Damaged . | . . . . . Bothacking | -11 -10 -10 -9 -9 ------------ Run | Scr Mat Min Mat Min Used RIF Installer . | . . . . . Robots Hacked . | . . . . . Non-combat . | . . . . . Combat . | . . . . . Robot Hacks Applied . | . . . . . Relay Couplers Released . | . . . . . Fabnet Peak Effective % . | . . . . . Robots Rewired . | . . . . . Allies Hacked . | . . . . . Hacks Repelled . | . . . . . Allies | -11 -10 -10 -9 -9 -------- Run | Scr Mat Min Mat Min Total Allies 1 | . . 1 . . Largest Group 1 | . . 1 1 . Highest-Rated Group 31 | . . 31 31 . Highest-Rated Ally 31 | . . 31 31 . Total Orders . | . . . . . Ally Attacks 4 | . . 4 . . Total Damage 63 | . . 63 . . Kills 1 | . . 1 . . Allies Corrupted . | . . . . . Allies Melted . | . . . . . Intel | -11 -10 -10 -9 -9 ------- Run | Scr Mat Min Mat Min Robot Analysis Total . | . . . . . Derelict Logs Recovered 1 | . . . . 1 Drone Launches . | . . . . . Drone Recoveries . | . . . . . Exploration | -11 -10 -10 -9 -9 ------------- Run | Scr Mat Min Mat Min Turns Passed 2515 | 83 1121 490 532 289 Spaces Moved 1199 | 57 500 238 236 168 Core 33 | 33 . . . . Treads 446 | 24 186 . 104 132 Legs 677 | . 307 238 132 . Wheels 43 | . 7 . . 36 Hover . | . . . . . Flight . | . . . . . Fastest Speed 50 | 50 110 190 160 115 Average Speed 172 | 104 178 190 176 150 Slowest Speed 240 | 160 240 190 190 240 Overloaded Moves . | . . . . . Propulsion Burnouts . | . . . . . Robots Hopped . | . . . . . Cave-ins Triggered . | . . . . . Exploration Rate (%) 39 | 3 73 62 23 35 Regions Visited 4 Branch Regions 2 Pre-discovered Areas 2 | . . . . 2 Known Exits Taken . | . . . . . Unknown Exits Taken 4 | 1 1 1 1 . Scrap Searched . | . . . . . Spaces Dug . | . . . . . Terrain Destroyed 4 | . 4 . . . Melee . | . . . . . Projectile . | . . . . . AOE 4 | . 4 . . . Terrain Rammed . | . . . . . Walls Destroyed . | . . . . . Machines Disabled . | . . . . . Actions | -11 -10 -10 -9 -9 --------- Run | Scr Mat Min Mat Min Total 1503 | 82 665 260 308 188 Wait 114 | 4 74 10 26 . Move 1195 | 56 499 237 235 168 Hop . | . . . . . Pick Up 45 | 12 23 1 9 . Fast Attach . | . . . . . Attach 31 | 7 10 . 6 8 Detach 5 | 1 4 . . . Swap 7 | . 4 . 3 . Drop 16 | 2 8 3 3 . Fire 71 | . 35 9 21 6 Melee . | . . . . . Ram . | . . . . . Kick 1 | . . . 1 . Crush 18 | . 8 . 4 6 Escape Stasis . | . . . . . Rewire . | . . . . . Trap . | . . . . . Miscellaneous . | . . . . . Route ------- -11/Scrapyard -10/Materials (discovered 3 exits: *Mat / [*Min x2]) -10/Mines -9/Materials -9/Mines History --------- Turn | Location | Event 15 | -11/Scrapyard | Discovered new exit (range 15) 84 | -11/Scrapyard | Entered Materials 244 | -10/Materials | Discovered new exit (range 16) 316 | -10/Materials | Build established: Mutant 546 | -10/Materials | Core integrity fell below 50% 753 | -10/Materials | Discovered new exit (range 13) 859 | -10/Materials | Discovered new exit (range 4) 932 | -10/Materials | Build established: Scavenger-Mutant 1205 | -10/Materials | Entered Mines 1514 | -10/Mines | Received a Mining Laser from a helpful Derelict 1584 | -10/Mines | Core integrity fell below 20% 1689 | -10/Mines | Discovered new exit (range 4) 1695 | -10/Mines | Entered Materials 1695 | -9/Materials | Accompanied by 1 ally 1695 | -9/Materials | Evolved 2 slots: Propulsion x2 2208 | -9/Materials | Discovered new exit (range 13) 2227 | -9/Materials | Entered Mines 2385 | -9/Mines | Assembled infested the area 2440 | -9/Mines | Learned location of Storage (-7) 2466 | -9/Mines | Core integrity fell below 50% 2511 | -9/Mines | Core integrity fell below 20% 2516 | -9/Mines | Destroyed by D-53 Grenadier with Mini Grenade Launcher Last Messages --------------- Lgt. Treads destroyed. The unstable cave ceiling collapses. Knocked back. Sensor Array destroyed. as-45711 destroyed. as-65430 destroyed. as-46508 destroyed. Critical hit (Burn: +80). as-59983 destroyed. Acquired 7 matter. as-86699 destroyed. as-82961 destroyed. Lgt. Treads destroyed. The unstable cave ceiling collapses. Lgt. Ion Engine destroyed. Beam Rifle destroyed. The unstable cave ceiling collapses. Beam Rifle destroyed. The unstable cave ceiling collapses. [Achievement: First Step to Greatness] Map ----- +----------------------------------------------------+ | ?????????????????????????????#% ?????????????????? | | ?????????????????????????????# #????????????????? | | ?????????????????????????????# #???????????????? | | ????????????????????????????# % ???????????????? | | ???????????????????????????? # ???????????????? | | ???????????????????????????## % ???????????????? | | ?????????????????????????### #???????????????? | | ????????????????????????## ???????????????? | | ???????????????????????## #???????????????? | | ????????? ?????????????# ##??????????????? | | ????????# ???????????## """" ???????????????? | | ????????# ???????????# """" #??????????????? | | ????????# ???????????# """" ###?????????????? | | ????????# #??????????## #?????????????? | | ????????# #???????????# ### % ##????????????? | | ????????# ##########??# #?## ##???????????? | | ????????# #### #?# #???????????? | | ????????# #### ### % #?# #???????????? | | ????????# #??# #?# ######?# # ##???????????? | | ?#####?## #??# #?# #?????## #????????????? | | ## ## ##?# #?# #?????# #????????????? | | #?# #?# #?????## #????????????? | | ### #?# ######## ##????????????? | | ?????# #?# dd######?????????????? | | ?????## #####?#### #?????????????????? | | ??????## #????????# @ ##????????????????? | | ??????## ##????????# # #????????????????? | | ??????# #????????## ##???????????????? | | ####### #???????## # #???????????????? | | ##?????## #???????????????? | | ####### ###???# #???????????????? | | #?????# ##??# # # #??????????????? | | #?????# #??## ## ##??????????????? | | #?????# #???## ## #####???????????????? | | ??????# ##????## ###???????????????????? | | ??????# #??????## #?????????????????????? | | ??????## ##???????## ##?????????????????????? | | ???????## ##?????????####??????????????????????? | | ????????# #????????????????????????????????????? | | ???????## #????????????????????????????????????? | | ???????# #????????????????????????????????????? | | ??????## #????????????????????????????????????? | | ?????## #????????????????????????????????????? | | ???### #????????????????????????????????????? | | ??## ##????????????????????????????????????? | | ??# ##???#?????????????????????????????????? | | ??# ##??? #?????????????????????????????????? | | ??# #??## ??????????????????????????????????? | | ??# #? ???????????????????????????????????? | | ??# #? #???????????????????????????????????? | +----------------------------------------------------+ Best States ------------- Heat Dissipation 28 Energy Generation 14 Energy Capacity 250 Matter Stores 300 Matter Capacity 300 Sight Range 16 Robot Scan Range 14 Terrain Scan Density 10 Armor Coverage 150 Evasion (%) 50 Recoil Reduction 4 Item Schematics ----------------- None Robot Schematics ------------------ None Fabricated ------------ Nothing Alien Tech Used ----------------- None Achievements -------------- Close Call First Step to Greatness Fist Fight It's Just You Challenges ------------ None Game ------ Seed ReactionUtilityInverter Manual? 0 Play Time 00:56:17 Cumulative 2.3 hours Start 2022.04.01 @ 23:14:07 End 2022.04.02 @ 00:15:08 Sessions 1 Manual Loads 0 Difficulty Rogue Special Mode None Game No. 3 Rogue 3 Adventurer 0 Explorer 0 Win Type - Total 0 Types 0/0/0/0/0/0/0/0/0 Lore% 1 Gallery% 4 Achievement% 5 Wizard Run 0 Options --------- ASCII 0 Keyboard 0 Movement Numpad Keybinds 0 Fullscreen 1 Font 16/Dina Map View 76x50 Tactical HUD 0 Map Filters NONE Filters NONE Steam 1 RUN: 2969391c-ccb2-4de1-ae3d-840584b64570